Cogmind - Beta 12 @@@ ROGUE MODE // 2023.03.25 @ 17:20:21 Player: Red Box Result: Destroyed by S-27 Virus with Autogun Performance ------------- Evolutions (3) 1500 Regions Visited (17) 3400 Robots Destroyed (315) 1575 Value Destroyed (13630) 13630 Prototype IDs (57) 1140 Alien Tech Used (1) 200 Bonus (2627) 2627 TOTAL SCORE: 24072 Bonus ------- High Alert Combat Kills 1745 Follower Combat Kills 410 Entered Garrisons 800 Aligned with FarCom 300 Friendly Fire -628 Cogmind --------- Core Integrity 0/700 Matter 276/300 Energy 500/500 System Corruption 0% Temperature Cool (27) Movement Rolling (160) Ox4 Location -7/Lower Caves Parts ------- > --- POWER (2) -------- Reinforced Deuterium Engine Heavy Deuterium Engine > --- PROPULSION (2) --- Armored Huge Wheel > --- UTILITY (8) ------ Huge Storage Unit Enhanced Optical Array Improved Sensor Array Experimental Targeting Computer Core Analyzer Advanced Weapon Cycler Layered Light Armor Plating Graphene Brace > --- WEAPON (2) ------- Heavy Rocket Launcher > --- INVENTORY (25) --- Armored Huge Wheel Centrium Wheel Advanced Cooling System High-capacity Storage Unit High-capacity Battery (250) Encrypted Comm Array Advanced Target Analyzer Authchip [Armor] Improved System Guard System Purifier AWS/EX-DEC Dispersion Rifle HERF Cannon Cooled Particle Cannon 8R-AWN's Boregun 8R-AWN's Boregun Heavy Mass Driver Hypervelocity Mass Driver Proton Missile Launcher Powered Hammer Deploy-a-Sentry Peak State ------------ > --- POWER ------------ Reinforced Deuterium Engine Heavy Deuterium Engine > --- PROPULSION ------- Armored Huge Wheel > --- UTILITY ---------- Huge Storage Unit Enhanced Optical Array Improved Sensor Array Experimental Targeting Computer Core Analyzer Advanced Weapon Cycler Layered Light Armor Plating Graphene Brace > --- WEAPON ----------- Heavy Mass Driver > --- INVENTORY -------- Armored Huge Wheel Centrium Wheel Advanced Cooling System High-capacity Storage Unit High-capacity Battery Encrypted Comm Array Advanced Target Analyzer Authchip [Armor] Improved System Guard System Purifier AWS/EX-DEC Dispersion Rifle HERF Cannon Cooled Particle Cannon 8R-AWN's Boregun 8R-AWN's Boregun Heavy Mass Driver Hypervelocity Mass Driver Proton Missile Launcher Heavy Rocket Launcher Powered Hammer Deploy-a-Sentry [Rating: 82] Favorites ----------- Power Heavy Deuterium Engine Engine Heavy Deuterium Engine Power Core Nuclear Core Propulsion Compact Wheel Treads Light Treads Leg Advanced Myomer Leg Wheel Compact Wheel Utility Huge Storage Unit Device Improved Cooling System Storage Huge Storage Unit Processor Core Analyzer Hackware Hacking Suite Protection Hardened Medium Armor Plating Weapon Advanced Beam Cannon Energy Gun Gatling Laser Energy Cannon Advanced Beam Cannon Ballistic Gun 8R-AWN's Boregun Ballistic Cannon Heavy Mass Driver Launcher Rocket Launcher Special Weapon Plasma Cutter Impact Weapon Powered Hammer Slashing Weapon Longsword +1 Special Melee Weapon Datajack Build | -11 -10 -10 -9 -9 -9 -8 -8 -8 -8 -8 -8 -7 -7 -7 -7 -7 -7 ------- Run | Jun Mat Min Mat Min Exi Min Mat Gar Mat Gar Mat Fac Gar Fac Gar Fac Low Slots Evolved 6 | . . . 2 . . . 2 . . . . 2 . . . . . Power . | . . . . . . . . . . . . . . . . . . Propulsion . | . . . . . . . . . . . . . . . . . . Utility 6 | . . . 2 . . . 2 . . . . 2 . . . . . Weapon . | . . . . . . . . . . . . . . . . . . Parts Attached 306 | 11 15 7 33 . 29 4 36 4 32 14 7 23 38 26 15 3 9 Power 24 | 1 1 1 4 . 1 . 7 . 2 . 1 1 . 2 2 . 1 Engine 23 | 1 1 1 4 . 1 . 6 . 2 . 1 1 . 2 2 . 1 Core 1 | . . . . . . . 1 . . . . . . . . . . Reactor . | . . . . . . . . . . . . . . . . . . Propulsion 36 | 6 2 1 2 . 5 . 4 . 4 1 1 2 2 4 . 1 1 Treads 7 | . . . . . 2 . 1 . 1 . . . . 3 . . . Leg 4 | 2 . . . . . . . . . . . . 2 . . . . Wheel 25 | 4 2 1 2 . 3 . 3 . 3 1 1 2 . 1 . 1 1 Hover . | . . . . . . . . . . . . . . . . . . Flight . | . . . . . . . . . . . . . . . . . . Utility 97 | 2 3 1 19 . 6 . 12 . 7 2 3 13 9 6 6 2 6 Device 54 | 1 1 1 10 . 3 . 5 . 3 1 . 9 5 5 4 1 5 Storage 6 | 1 2 . 2 . . . . . . . 1 . . . . . . Processor 4 | . . . . . . . . . . . . 1 . . 2 . 1 Hackware 5 | . . . . . 1 . 1 . 2 1 . . . . . . . Protection 28 | . . . 7 . 2 . 6 . 2 . 2 3 4 1 . 1 . Artifact . | . . . . . . . . . . . . . . . . . . Weapon 149 | 2 9 4 8 . 17 4 13 4 19 11 2 7 27 14 7 . 1 Energy Gun 39 | 2 5 1 . . 1 . 2 . 6 2 2 4 11 3 . . . Energy Cannon 63 | . 2 2 6 . 2 2 7 2 12 5 . 1 12 8 2 . . Ballistic Gun 3 | . . . . . . . 1 . 1 1 . . . . . . . Ballistic Cannon 7 | . . . . . 1 . 1 . . . . 1 . 1 3 . . Launcher 21 | . 2 1 1 . 3 2 2 2 . 3 . . 1 1 2 . 1 Special Weapon 1 | . . . . . 1 . . . . . . . . . . . . Impact Weapon 5 | . . . . . . . . . . . . 1 3 1 . . . Slashing Weapon 8 | . . . . . 8 . . . . . . . . . . . . Piercing Weapon . | . . . . . . . . . . . . . . . . . . Special Melee Weapon 2 | . . . 1 . 1 . . . . . . . . . . . . Unidentified Prototypes 12 | . . . 2 . . . 3 . 4 . . 2 . . . . 1 Corrupted Parts 2 | . . 2 . . . . . . . . . . . . . . . System Corruption 6 | . . 6 . . . . . . . . . . . . . . . Parts Lost 39 | . . 1 3 . 4 . 11 1 5 2 . 1 5 3 2 . 1 Power 5 | . . 1 . . . . 2 . 1 . . 1 . . . . . Propulsion 9 | . . . 1 . . . 4 1 1 1 . . 1 . . . . Utility 14 | . . . 2 . 3 . 2 . 1 . . . 4 . 1 . 1 Weapon 11 | . . . . . 1 . 3 . 2 1 . . . 3 1 . . Highest Loss Streak 2 | . . 1 2 . 2 . 2 1 2 1 . 1 2 2 1 . 1 To Critical Strikes 2 | . . . . . . . 1 . 1 . . . . . . . . Average Slot Usage (%) 95 | . 99 98 99 100 92 100 92 100 97 99 99 94 90 97 87 82 82 Engine 9 | . 14 13 11 11 11 11 8 9 8 9 9 6 7 7 7 7 7 Treads 2 | . . . . . . . 3 9 5 . . . . 6 . . . Wheel 14 | . 28 28 21 22 21 22 12 9 10 17 17 15 9 2 7 6 7 Device 15 | . 14 14 22 22 16 11 12 9 9 13 9 23 18 25 15 20 21 Storage 9 | . 14 14 11 11 11 11 9 9 9 9 9 7 7 7 7 7 7 Processor 1 | . . . . . . . . . . . . . . . 6 15 22 Hackware 11 | . . . . . 1 11 15 18 24 13 18 15 15 15 15 9 . Protection 11 | . . . 10 11 11 11 13 18 10 18 18 9 11 12 14 6 7 Energy Gun 4 | . 20 . . . . . 4 . 1 . 14 14 5 3 . . . Energy Cannon 11 | . 6 28 20 22 7 21 10 17 16 17 3 . 8 10 3 . . Naked Turns . | . . . . . . . . . . . . . . . . . . Heaviest Build 134 | 12 22 26 108 108 116 104 124 124 128 126 125 123 134 122 125 124 133 Greatest Support 60 | 32 20 20 32 32 32 32 32 20 40 32 32 32 60 60 28 28 28 Greatest Overweight (x) 12 | 1 1 1 4 3 4 3 12 12 7 7 3 3 8 4 4 4 4 Average Overweight (x) 3 | . . . 1 3 3 3 7 11 3 3 3 3 4 2 3 4 4 Largest Inventory Capacity 25 | 8 10 10 25 25 25 25 25 25 25 25 25 25 25 25 25 25 25 Average Capacity 23 | 7 9 10 15 25 25 25 25 25 25 25 25 25 25 25 25 25 25 Most Carried 25 | 8 10 10 25 25 25 25 25 25 25 25 25 25 25 25 25 25 25 Average Carried 22 | 4 9 9 14 24 23 24 24 24 24 23 24 24 23 24 24 24 24 Final Capacity 25 | 8 10 10 25 25 25 25 25 25 25 25 25 25 25 25 25 25 25 Final Carried 25 | 8 10 10 25 25 25 25 25 25 25 23 25 25 25 25 25 25 24 Class Distribution -------------------- 56% | Mutant 36% | Hacker-Mutant 6% | Scavenger-Mutant Dominant Class ---------------- Mutant | -10/Materials Mutant | -10/Mines Mutant | -9/Materials Mutant | -9/Mines Mutant | -9/Exiles Mutant | -8/Mines Mutant | -8/Materials Mutant | -8/Garrison Hacker-Mutant | -8/Materials Mutant | -8/Garrison Hacker-Mutant | -8/Materials Hacker-Mutant | -7/Factory Hacker-Mutant | -7/Garrison Hacker-Mutant | -7/Factory Hacker-Mutant | -7/Garrison Mutant | -7/Factory Scavenger-Mutant | -7/Lower Caves Resources | -11 -10 -10 -9 -9 -9 -8 -8 -8 -8 -8 -8 -7 -7 -7 -7 -7 -7 ----------- Run | Jun Mat Min Mat Min Exi Min Mat Gar Mat Gar Mat Fac Gar Fac Gar Fac Low Matter Collected 4418 | 310 182 67 398 . 441 59 455 79 295 198 117 236 422 201 603 54 301 Remotely . | . . . . . . . . . . . . . . . . . . Salvage Created 11472 | 106 324 52 1576 62 305 250 1683 433 1078 698 827 986 1566 454 774 250 48 Parts 663 | 11 30 . 95 3 50 12 96 21 61 50 47 54 54 16 45 16 2 Haulers Intercepted 11 | . 1 . 3 . . . 2 . 2 . 2 1 . . . . . Recyclers Shooed 2 | . . . . . . . . . 1 . . . . 1 . . . Parts Field Recycled . | . . . . . . . . . . . . . . . . . . Retrieved Matter . | . . . . . . . . . . . . . . . . . . Parts Self-Destructed 1 | . . . . . . . . . . . . . . . . . 1 Prevented 1 | . . . . . . . . . . . . . . . . . 1 Kills | -11 -10 -10 -9 -9 -9 -8 -8 -8 -8 -8 -8 -7 -7 -7 -7 -7 -7 ------- Run | Jun Mat Min Mat Min Exi Min Mat Gar Mat Gar Mat Fac Gar Fac Gar Fac Low Combat Hostiles Destroyed 264 | . 9 8 35 . 6 7 35 15 21 20 17 19 35 9 21 5 2 Guns 61 | . 3 . . . . . 2 . 1 . 16 18 21 . . . . Cannons 141 | . . 5 33 . 1 3 31 11 19 12 . . 8 2 14 1 1 AOE 44 | . 6 3 1 . 5 3 . 4 . 7 . . 1 4 5 4 1 Classes Destroyed 21 | 2 4 1 5 . 2 2 1 1 . 1 1 1 . . . . . Worker 8 | . . . 1 . . 1 2 . . . 2 1 . . . 1 . Builder 3 | . . . . . . . . . . . 1 1 . . . 1 . Tunneler 3 | 2 . . . . . . . . . . . . . . . 1 . Hauler 11 | . 1 . 3 . . . 2 . 2 . 2 1 . . . . . Recycler 5 | 1 1 . 1 1 . . . . . . . 1 . . . . . Mechanic 3 | . . . 1 . . . . . . . . . . 1 . 1 . Operator 3 | . . . 1 . . . . . . . 1 . . . . 1 . Turret 1 | . . . . . 1 . . . . . . . . . . . . Watcher 23 | . 2 . 5 . . . 5 . 5 . 4 2 . . . . . Swarmer 79 | . 6 . 14 . . 3 11 8 9 7 6 2 6 . 6 . 1 Cutter 6 | . . . . . . . . . . 3 . . 3 . . . . Grunt 86 | . 3 . 8 . . 2 14 2 2 6 6 10 18 5 6 4 . Brawler 5 | . . . . . . 1 . . . . . . 2 . 2 . . Duelist 7 | . . . 3 . . . 1 . . . . . 1 2 . . . Sentry 47 | . . . 10 . . . 8 4 8 2 4 4 5 1 . 1 . Specialist 1 | . . . . . . . . 1 . . . . . . . . . Hunter 8 | . . . . . . 1 . . 2 2 1 . . . 2 . . Programmer 10 | . . . . . . . . . . . . 3 . 1 5 . 1 Heavy 1 | . . . . . . . 1 . . . . . . . . . . Zionite 2 | . . . . . 2 . . . . . . . . . . . . Assembled 15 | . . 8 . . 7 . . . . . . . . . . . . Best Kill Streak 9 | 2 3 8 9 1 4 4 6 4 3 4 5 7 5 4 5 8 1 Combat Bots Only 8 | . 3 8 6 . 4 3 4 4 3 4 3 6 5 3 5 4 1 Max Kills in Single Turn 4 | 1 3 2 3 1 2 4 2 3 1 3 3 1 2 3 2 4 1 Gunslinging 1 | . . . . . . . . . . . 1 . . . . . . Exploded 4 | . 3 2 1 . 2 3 . 3 . 3 . . 1 2 2 4 1 Melee . | . . . . . . . . . . . . . . . . . . Uniques/NPCs Destroyed 4 | . . . . . 4 . . . . . . . . . . . . 8R-AWN (-9/Exiles) EX-DEC (-9/Exiles) EX-HEX (-9/Exiles) EX-BIN (-9/Exiles) Combat | -11 -10 -10 -9 -9 -9 -8 -8 -8 -8 -8 -8 -7 -7 -7 -7 -7 -7 -------- Run | Jun Mat Min Mat Min Exi Min Mat Gar Mat Gar Mat Fac Gar Fac Gar Fac Low Damage Taken 9941 | . 84 273 844 . 907 90 1793 349 836 377 407 617 1864 360 793 106 241 Core 1502 | . 12 38 142 . 66 27 176 51 150 32 108 113 275 18 214 18 62 Absorbed by Shields 549 | . . . 191 . 100 . . . . . . 245 13 . . . . Regen/Repaired (Parts) 1478 | . 19 . 81 . . . 334 . 280 . 367 . . . . 397 . Core Remaining (%) 56 | 100 . 80 . . . 41 . . . . 6 . . . . . . Volleys Fired 893 | 10 38 13 90 1 39 8 127 61 87 84 40 47 133 19 76 13 7 Largest 2 | 2 2 2 2 2 2 2 2 2 2 2 2 2 2 2 2 1 1 Hottest 160 | 90 100 120 136 136 75 136 143 160 160 160 160 160 160 155 144 75 75 Shots Fired 1433 | 20 73 24 180 2 40 16 217 89 140 108 80 94 187 36 107 13 7 Gun 418 | 20 70 . . . 4 . 28 . 9 2 74 94 100 17 . . . Cannon 964 | . . 22 177 2 21 13 187 86 131 100 6 . 82 16 102 13 6 Launcher 49 | . 3 2 3 . 13 3 2 3 . 6 . . 5 3 5 . 1 Special 2 | . . . . . 2 . . . . . . . . . . . . Kinetic 102 | . . . . . 13 . 15 . 2 . . . . 2 51 13 6 Thermal 977 | 20 70 22 177 2 14 13 153 86 138 2 74 94 103 9 . . . Explosive 28 | . 3 2 3 . 4 1 . 3 . 6 . . . . 5 . 1 Electromagnetic 326 | . . . . . 9 2 49 . . 100 6 . 84 25 51 . . Robot Hit Streak 25 | 2 13 3 16 1 4 5 15 25 10 9 14 12 24 8 7 3 4 Robot Miss Streak 7 | 2 6 3 4 1 1 2 6 2 4 3 4 5 7 2 3 2 2 Penetration Max . | . . . . . . . . . . . . . . . . . . Secondary Targets 4 | . . . . . . . . . . . 1 2 1 . . . . Max Gunslinging Chain 1 | . . . . . . . . . . . 1 1 1 . . . . Shots Hit Robots 827 | 10 43 11 119 1 52 10 128 32 62 27 69 86 102 25 43 4 3 Core Hits 520 | 4 18 20 59 1 30 9 70 16 29 20 50 76 72 11 24 9 2 Critical Kills 3 | . . . . . . 1 1 . 1 . . . . . . . . Critical Parts Destroyed . | . . . . . . . . . . . . . . . . . . Critical Strikes 26 | . 3 . . . 2 1 2 . 1 2 1 . 6 3 5 . . Burn 10 | . 3 . . . . . . . . . . . 4 3 . . . Meltdown 3 | . . . . . . 1 1 . 1 . . . . . . . . Blast 3 | . . . . . . . . . . . . . . . 3 . . Corrupt 8 | . . . . . . . 1 . . 2 1 . 2 . 2 . . Sever 2 | . . . . . 2 . . . . . . . . . . . . Melee Attacks 66 | . . . 1 . 57 . . . . . . 1 7 . . . . Impact 8 | . . . . . . . . . . . . 1 7 . . . . Slashing 53 | . . . . . 53 . . . . . . . . . . . . Piercing . | . . . . . . . . . . . . . . . . . . Sneak Attacks 8 | . . . 1 . 7 . . . . . . . . . . . . Combat Hostiles . | . . . . . . . . . . . . . . . . . . Follow-up Attacks 5 | . . . . . 5 . . . . . . . . . . . . Damage Inflicted 26014 | 118 873 515 2708 21 2355 482 3421 1113 1692 1239 1631 1994 3009 1424 1770 1232 417 Guns 6602 | 118 527 . . . 61 . 414 . 46 . 1443 1994 1687 312 . . . Cannons 11884 | . . 229 2381 21 . 145 2609 858 1646 651 108 . 1008 316 1365 285 262 Explosions 5863 | . 346 286 327 . 684 337 398 255 . 588 80 . 259 796 405 947 155 Melee 1645 | . . . . . 1590 . . . . . . . 55 . . . . Ramming . | . . . . . . . . . . . . . . . . . . Kinetic 1658 | . . . . . . . 255 . . . . . . 35 821 285 262 Thermal 14368 | 118 527 229 2381 21 81 145 2119 858 1692 . 1523 1994 1715 818 . 147 . Explosive 3836 | . 346 286 327 . 520 223 . 255 . 588 . . . . 405 731 155 Electromagnetic 4507 | . . . . . 164 114 1047 . . 651 108 . 1239 571 544 69 . Impact 55 | . . . . . . . . . . . . . 55 . . . . Slashing 1590 | . . . . . 1590 . . . . . . . . . . . . Piercing . | . . . . . . . . . . . . . . . . . . Highest Corruption 6 | . . 6 . . . . 1 . . . . 3 2 2 2 . 1 Average Corruption 1 | . . 4 . . . . 1 . . . . 2 1 1 1 . 1 Corruption Purged 13 | . . . . . . . 1 . . . . 3 2 4 2 . 1 Corruption Blocked . | . . . . . . . . . . . . . . . . . . Effects 24 | . . . . . . . 16 . . . . 2 1 1 4 . . Message Errors 6 | . . . . . . . 5 . . . . . . . 1 . . Matter Fused 6 | . . . . . . . 4 . . . . 1 . . 1 . . Heat Flow Errors 2 | . . . . . . . 1 . . . . . . . 1 . . Energy Discharges 2 | . . . . . . . 2 . . . . . . . . . . Data Loss (minor) 3 | . . . . . . . 2 . . . . . . . 1 . . Data Loss (major) 1 | . . . . . . . 1 . . . . . . . . . . Misfires 1 | . . . . . . . . . . . . . 1 . . . . Alerts 2 | . . . . . . . 1 . . . . 1 . . . . . Weapon Failures 1 | . . . . . . . . . . . . . . 1 . . . Overload Shots 3 | . . . . . . . . . . . . . 3 . . . . Overflow Damage 808 | . 21 . 39 . 83 . 163 59 31 59 40 . 38 45 45 101 84 Projectiles 314 | . . . 25 . . . 95 19 31 6 . . . 1 28 25 84 Explosions 393 | . 21 . 14 . 20 . 68 40 . 53 40 . . 44 17 76 . Melee 101 | . . . . . 63 . . . . . . . 38 . . . . Knockbacks 15 | . . . . . . . 6 . . . . . . . 7 1 1 Impact . | . . . . . . . . . . . . . . . . . . Kinetic 13 | . . . . . . . 5 . . . . . . . 6 1 1 Secondary 2 | . . . . . . . 1 . . . . . . . 1 . . Self-Inflicted Damage 426 | . . . 48 . 9 . 95 . . 5 . . . 143 62 16 48 Shots 13 | . . . 2 . 1 . 3 . . 2 . . . 2 1 1 1 Rammed . | . . . . . . . . . . . . . . . . . . Targets Rammed . | . . . . . . . . . . . . . . . . . . Kicked . | . . . . . . . . . . . . . . . . . . Crushed . | . . . . . . . . . . . . . . . . . . Highest Temperature 595 | 150 252 132 240 18 272 6 424 288 135 317 251 388 595 242 247 166 130 Average Temperature 96 | 58 78 65 38 12 116 4 116 81 31 56 67 117 153 67 54 57 58 Received Heat Transfer 2246 | . 12 . 199 . . 36 504 108 252 81 153 183 478 153 54 21 12 Effects 39 | . . . 2 . . . 5 4 . . . . 28 . . . . Shutdowns 5 | . . . . . . . 2 . . . . . 3 . . . . Energy Bleed 5 | . . . . . . . 2 1 . . . . 2 . . . . Interference 16 | . . . 2 . . . . 3 . . . . 11 . . . . Matter Decay 1 | . . . . . . . . . . . . . 1 . . . . Short Circuit 4 | . . . . . . . . . . . . . 4 . . . . Damage (minor) 2 | . . . . . . . 1 . . . . . 1 . . . . Damage (major) 6 | . . . . . . . . . . . . . 6 . . . . Siege Activations . | . . . . . . . . . . . . . . . . . . Robots Corrupted 12 | . . . . . 1 . 1 . . 1 . . 5 2 2 . . Combat Hostiles 11 | . . . . . . . 1 . . 1 . . 5 2 2 . . Parts Fried 41 | . . . . . . . 11 . . 2 2 . 14 5 7 . . Impact Corruptions 1 | . . . . . . . . . . . . . 1 . . . . Robots Melted 10 | . 1 . 1 . . 1 2 . 1 . 2 1 . 1 . . . Combat Hostiles 7 | . . . 1 . . 1 1 . 1 . 1 1 . 1 . . . Parts Melted 58 | 1 4 . 6 . . 2 4 7 8 . 8 9 9 . . . . Heat Transferred 27236 | 310 1705 481 4514 37 129 259 3099 1600 3074 . 3125 4203 3669 931 . 100 . Parts Sabotaged . | . . . . . . . . . . . . . . . . . . Parts Stolen 1 | . . . . . . . . . . . . . . . . . 1 Parts Stripped . | . . . . . . . . . . . . . . . . . . Power Chain Reactions 3 | . . . . . . . 2 . . . . . 1 . . . . Missiles Intercepted . | . . . . . . . . . . . . . . . . . . Alert | -11 -10 -10 -9 -9 -9 -8 -8 -8 -8 -8 -8 -7 -7 -7 -7 -7 -7 ------- Run | Jun Mat Min Mat Min Exi Min Mat Gar Mat Gar Mat Fac Gar Fac Gar Fac Low Peak Influence 1767 | 15 228 22 613 175 . 115 397 885 472 1016 548 345 1746 996 1767 1254 . Initial 927 | . 9 11 . 170 . . 7 157 426 65 495 90 125 916 387 927 . Average 390 | 7 95 4 398 78 . 37 216 451 205 502 274 214 887 812 1231 964 . Maximum Alert Level 5 | . 1 . 2 . . . 1 3 2 3 2 1 5 3 5 4 . Low Security (%) 34 | 100 88 100 16 100 . 100 31 3 48 15 39 35 8 . . . . Level 1 32 | . 12 . 24 . . . 68 60 42 21 32 64 4 . 2 . . Level 2 16 | . . . 58 . . . . 9 8 35 28 . 27 29 15 . . Level 3 10 | . . . . . . . . 26 . 27 . . 30 70 15 76 . Level 4 3 | . . . . . . . . . . . . . 17 . 38 23 . Level 5 2 | . . . . . . . . . . . . . 11 . 27 . . High Security . | . . . . . . . . . . . . . . . . . . Max Security . | . . . . . . . . . . . . . . . . . . Squads Dispatched 29 | . 1 . 3 . . . 5 . 3 . 2 9 . 5 . 1 . Investigation 5 | . 1 . 1 . . . . . . . 1 1 . 1 . . . Extermination 4 | . . . . . . . . . . . . 3 . 1 . . . Reinforcement 10 | . . . 1 . . . 2 . 3 . 1 2 . 1 . . . Assault 4 | . . . 1 . . . . . . . . . . 2 . 1 . Garrison 6 | . . . . . . . 3 . . . . 3 . . . . . Intercept . | . . . . . . . . . . . . . . . . . . Searches Triggered . | . . . . . . . . . . . . . . . . . . Construction Impeded . | . . . . . . . . . . . . . . . . . . Haulers Reinforced . | . . . . . . . . . . . . . . . . . . Active Scanning Responses . | . . . . . . . . . . . . . . . . . . Cargo Convoy Interrupts . | . . . . . . . . . . . . . . . . . . Stealth | -11 -10 -10 -9 -9 -9 -8 -8 -8 -8 -8 -8 -7 -7 -7 -7 -7 -7 --------- Run | Jun Mat Min Mat Min Exi Min Mat Gar Mat Gar Mat Fac Gar Fac Gar Fac Low Distress Signals 8 | . . . 1 . . . 4 . . . 2 1 . . . . . Communications Jammed . | . . . . . . . . . . . . . . . . . . Distress Signals . | . . . . . . . . . . . . . . . . . . Times Spotted 416 | . 22 12 45 . 49 9 56 17 32 19 29 25 37 15 29 9 11 Peak Tracking Total 15 | . 6 15 4 . 7 3 5 6 4 4 4 5 5 4 6 4 4 Tactical Retreats 42 | . . . 3 . 17 2 7 . 1 1 1 1 1 6 2 . . Traps | -11 -10 -10 -9 -9 -9 -8 -8 -8 -8 -8 -8 -7 -7 -7 -7 -7 -7 ------- Run | Jun Mat Min Mat Min Exi Min Mat Gar Mat Gar Mat Fac Gar Fac Gar Fac Low Traps Triggered 32 | . . . 1 . . . 1 2 . 5 . 5 9 5 4 . . Indirectly . | . . . . . . . . . . . . . . . . . . Trap Hack Attempts 15 | . . . 15 . . . . . . . . . . . . . . Triggered . | . . . . . . . . . . . . . . . . . . Disarmed . | . . . . . . . . . . . . . . . . . . Reprogrammed 4 | . . . 4 . . . . . . . . . . . . . . Reused 4 | . . . . . 4 . . . . . . . . . . . . Traps Extracted 4 | . . . 4 . . . . . . . . . . . . . . Installed 4 | . . . . . 4 . . . . . . . . . . . . Triggered 2 | . . . . . . . . . . . . . . 1 . . 1 Most Traps Carried 4 | . . . 4 4 4 . . . . 1 1 1 1 1 1 . . Machines | -11 -10 -10 -9 -9 -9 -8 -8 -8 -8 -8 -8 -7 -7 -7 -7 -7 -7 ---------- Run | Jun Mat Min Mat Min Exi Min Mat Gar Mat Gar Mat Fac Gar Fac Gar Fac Low Machines Disabled 69 | . 1 . 2 . 4 2 2 5 . 12 3 1 5 5 9 18 . Max in Single Turn 9 | . 1 . 1 . 2 2 1 1 . 1 2 1 1 4 1 9 . Garrison Relay 18 | . . . . . . . . 3 . 4 . . 3 . 8 . . Machines Repaired . | . . . . . . . . . . . . . . . . . . Machines Sabotaged . | . . . . . . . . . . . . . . . . . . Overloaded Fab Kills . | . . . . . . . . . . . . . . . . . . Hacking | -11 -10 -10 -9 -9 -9 -8 -8 -8 -8 -8 -8 -7 -7 -7 -7 -7 -7 --------- Run | Jun Mat Min Mat Min Exi Min Mat Gar Mat Gar Mat Fac Gar Fac Gar Fac Low Machines Accessed 113 | . 11 1 15 1 2 . 17 4 13 3 12 13 3 6 3 9 . Terminals 75 | . 8 . 9 1 . . 11 4 7 3 10 7 3 3 3 6 . Fabricators 2 | . . . . . . . . . . . . 2 . . . . . Repair Stations 11 | . 1 . 2 . . . 2 . 2 . 1 . . . . 3 . Recycling Units 12 | . 2 . 2 . . . 2 . 1 . 1 2 . 2 . . . Scanalyzers 5 | . . . 2 . . . 1 . 2 . . . . . . . . Garrison Access 5 | . . . . . . . 1 . 1 . . 2 . 1 . . . Total Hacks 443 | . 35 1 52 2 2 . 81 11 54 10 59 50 9 25 6 46 . Successful 262 | . 26 1 33 1 2 . 53 5 32 5 37 23 2 11 3 28 . Failed 177 | . 9 . 18 1 . . 27 6 22 5 21 26 7 14 3 18 . Catastrophic 18 | . . . 3 . . . 2 . 2 . 2 3 1 . 2 3 . Database Lockouts 4 | . . . 1 . . . 1 . . . 1 1 . . . . . Manual 216 | . 28 . 23 2 1 . 51 5 19 7 30 18 2 8 3 19 . Terminals 306 | . 23 . 31 2 . . 59 11 29 10 44 36 9 13 6 33 . Fabricators 4 | . . . . . . . . . . . . 4 . . . . . Repair Stations 55 | . 2 . 8 . . . 12 . 12 . 8 . . . . 13 . Recycling Units 43 | . 10 . 6 . . . 4 . 2 . 7 4 . 10 . . . Scanalyzers 20 | . . . 7 . . . 3 . 10 . . . . . . . . Garrison Access 12 | . . . . . . . 3 . 1 . . 6 . 2 . . . Terminal Hacks 110 | . 6 1 8 1 2 . 22 3 11 3 18 13 1 3 3 15 . Record 3 | . . . . . 1 . 1 . . . . . . . . 1 . Part Schematic 5 | . . . . . . . . . . . . 4 . . . 1 . Robot Schematic 2 | . . . . . . . 1 . . . . 1 . . . . . Robot Analysis 30 | . 4 . 4 1 . . 10 . 1 . 1 3 . . . 6 . Prototype ID Bank 6 | . . . . . . . . . 1 . 4 1 . . . . . Open Door 1 | . . 1 . . . . . . . . . . . . . . . Level Access Points 1 | . . . . . . . 1 . . . . . . . . . . Branch Access Points 5 | . . . 1 . . . 1 . . . 1 1 . . . 1 . Emergency Access Points 4 | . . . . . . . . 1 . 1 . . 1 . 1 . . Terminal Index 5 | . 1 . . . . . . . 1 . 1 1 . . . 1 . Repair Station Index 2 | . . . . . . . . . . . 1 . . . . 1 . Scanalyzer Index 1 | . . . . . . . 1 . . . . . . . . . . Garrison Index 4 | . . . . . . . 1 . 1 . 1 1 . . . . . Alert Level 4 | . . . . . . . . . 1 . 1 . . . . 2 . Unreport Threat 12 | . . . 1 . . . 2 . 3 . 3 . . 2 . 1 . Locate Traps 12 | . . . 1 . . . 4 . 1 . 4 . . 1 . 1 . Recall Investigation 1 | . . . 1 . . . . . . . . . . . . . . Recall Reinforcements 3 | . . . . . . . . . 2 . 1 . . . . . . Hauler Manifests 1 | . . . . . . . . . . . . 1 . . . . . Zone Layout 1 | . 1 . . . . . . . . . . . . . . . . Garrison Registry 3 | . . . . . . . . 1 . 1 . . . . 1 . . Patrol Navigation 3 | . . . . . . . . 1 . 1 . . . . 1 . . EX-Prototype ID Bank 1 | . . . . . 1 . . . . . . . . . . . . Fabricator Hacks 1 | . . . . . . . . . . . . 1 . . . . . Build 1 | . . . . . . . . . . . . 1 . . . . . Repair Station Hacks 42 | . 2 . 5 . . . 12 . 7 . 6 . . . . 10 . Scan Component 22 | . 1 . 3 . . . 6 . 4 . 3 . . . . 5 . Repair 20 | . 1 . 2 . . . 6 . 3 . 3 . . . . 5 . Recycling Unit Hacks 15 | . 4 . 3 . . . 2 . 1 . 2 1 . 2 . . . Report Inventory 8 | . 2 . 2 . . . 1 . 1 . 1 . . 1 . . . Retrieve Components 7 | . 2 . 1 . . . 1 . . . 1 1 . 1 . . . Scanalyzer 15 | . . . 7 . . . 3 . 5 . . . . . . . . Insert Component 7 | . . . 3 . . . 2 . 2 . . . . . . . . Analyze 8 | . . . 4 . . . 1 . 3 . . . . . . . . Garrison Access Hacks 4 | . . . . . . . 1 . 1 . . 1 . 1 . . . Unlock Access 4 | . . . . . . . 1 . 1 . . 1 . 1 . . . Unauthorized Hacks 75 | . 14 . 10 . . . 13 2 7 2 11 7 1 5 . 3 . Terminals 57 | . 10 . 7 . . . 10 2 6 2 9 6 1 1 . 3 . Track 15 | . 2 . 1 . . . 3 . 1 1 3 3 . . . 1 . Assimilate 8 | . 4 . 2 . . . . . 2 . . . . . . . . Botnet 29 | . 3 . 3 . . . 6 2 2 1 5 3 1 1 . 2 . Operators 5 | . 1 . 1 . . . 1 . 1 . 1 . . . . . . Fabricators 1 | . . . . . . . . . . . . 1 . . . . . Liberate 1 | . . . . . . . . . . . . 1 . . . . . Repair Stations . | . . . . . . . . . . . . . . . . . . Recycling Units 15 | . 4 . 3 . . . 1 . 1 . 2 . . 4 . . . Reject 8 | . 1 . 2 . . . 1 . 1 . 1 . . 2 . . . Recyclers 2 | . 1 . . . . . . . . . . . . 1 . . . Mask 4 | . 1 . 1 . . . . . . . 1 . . 1 . . . Tunnel 1 | . 1 . . . . . . . . . . . . . . . . Scanalyzers . | . . . . . . . . . . . . . . . . . . Garrison Access 2 | . . . . . . . 2 . . . . . . . . . . Broadcast 1 | . . . . . . . 1 . . . . . . . . . . Watchers 1 | . . . . . . . 1 . . . . . . . . . . Data Cores Recovered 1 | . . . . . . . . . . . 1 . . . . . . Used 1 | . . . . . . . . . . . 1 . . . . . . Hacking Detections 102 | . 10 . 14 1 . . 17 4 10 3 11 13 3 5 3 8 . Full Trace Events 6 | . . . . . . . . . 2 . 1 1 2 . . . . Feedback Events . | . . . . . . . . . . . . . . . . . . Feedback Blocked . | . . . . . . . . . . . . . . . . . . Robot Schematics Acquired 2 | . . . . . . . 1 . . . . 1 . . . . . Robots Built 1 | . . . . . . . . . . . . 1 . . . . . Authchips . | . . . . . . . . . . . . . . . . . . Time 67 | . . . . . . . . . . . . 67 . . . . . Total Robot Build Rating 4 | . . . . . . . . . . . . 4 . . . . . Part Schematics Acquired 10 | . . . 3 . . . 1 . 1 . . 4 . . . 1 . Parts Built . | . . . . . . . . . . . . . . . . . . Authchips . | . . . . . . . . . . . . . . . . . . Time . | . . . . . . . . . . . . . . . . . . Total Part Build Rating . | . . . . . . . . . . . . . . . . . . Parts Repaired 20 | . 1 . 2 . . . 6 . 3 . 3 . . . . 5 . Time 998 | . 26 . 70 . . . 332 . 126 . 134 . . . . 310 . Parts Recycled . | . . . . . . . . . . . . . . . . . . Recycled Matter . | . . . . . . . . . . . . . . . . . . Retrieved Matter . | . . . . . . . . . . . . . . . . . . Retrieved Components 34 | . 13 . 3 . . . 2 . . . 10 3 . 3 . . . Parts Scanalyzed 6 | . . . 3 . . . 1 . 2 . . . . . . . . Part Schematics Acquired 5 | . . . 3 . . . 1 . 1 . . . . . . . . Parts Damaged 1 | . . . . . . . 1 . . . . . . . . . . Bothacking | -11 -10 -10 -9 -9 -9 -8 -8 -8 -8 -8 -8 -7 -7 -7 -7 -7 -7 ------------ Run | Jun Mat Min Mat Min Exi Min Mat Gar Mat Gar Mat Fac Gar Fac Gar Fac Low Used RIF Installer . | . . . . . . . . . . . . . . . . . . Robots Hacked 5 | . . . 1 . 4 . . . . . . . . . . . . Non-combat 4 | . . . 1 . 3 . . . . . . . . . . . . Combat 1 | . . . . . 1 . . . . . . . . . . . . Robot Hacks Applied 5 | . . . 1 . 4 . . . . . . . . . . . . parse_system 5 | . . . 1 . 4 . . . . . . . . . . . . Relay Couplers Released 72 | . . . . . . . . 11 . 14 . . 14 . 33 . . Machine Destruction 72 | . . . . . . . . 11 . 14 . . 14 . 33 . . Fabnet Peak Effective % . | . . . . . . . . . . . . . . . . . . Robots Rewired 3 | . . . . . . . . . . . . . 3 . . . . Allies Hacked . | . . . . . . . . . . . . . . . . . . Hacks Repelled . | . . . . . . . . . . . . . . . . . . Allies | -11 -10 -10 -9 -9 -9 -8 -8 -8 -8 -8 -8 -7 -7 -7 -7 -7 -7 -------- Run | Jun Mat Min Mat Min Exi Min Mat Gar Mat Gar Mat Fac Gar Fac Gar Fac Low Total Allies 10 | . 2 . . . . . . . 1 . . 1 3 . 2 . 1 Largest Group 3 | . 2 2 1 . . . . . . . . 1 3 1 2 1 1 Highest-Rated Group 175 | . 20 20 10 . . . . . . . . 40 63 21 175 80 165 Highest-Rated Ally 165 | . 10 10 10 . . . . . . . . 40 21 21 95 80 165 Total Orders 18 | . 11 4 1 . . . . . . . . . . 2 . . . STAY 10 | . 6 2 1 . . . . . . . . . . 1 . . . FOLLOW 8 | . 5 2 . . . . . . . . . . . 1 . . . Ally Attacks 44 | . . . . . . . . . . . . . 13 . 16 12 3 Total Damage 1768 | . . . . . . . . . . . . . 354 . 687 251 476 Kills 15 | . . . . . . . . . . . . . 1 . 9 1 4 Allies Corrupted 1 | . . 1 . . . . . . . . . . . . . . . Allies Melted . | . . . . . . . . . . . . . . . . . . Intel | -11 -10 -10 -9 -9 -9 -8 -8 -8 -8 -8 -8 -7 -7 -7 -7 -7 -7 ------- Run | Jun Mat Min Mat Min Exi Min Mat Gar Mat Gar Mat Fac Gar Fac Gar Fac Low Robot Analysis Total 27 | . 4 . 4 1 . . 9 . 1 . 1 3 . . . 4 . Derelict Logs Recovered 4 | . . 2 . 2 . . . . . . . . . . . . . Drone Launches . | . . . . . . . . . . . . . . . . . . Drone Recoveries . | . . . . . . . . . . . . . . . . . . Exploration | -11 -10 -10 -9 -9 -9 -8 -8 -8 -8 -8 -8 -7 -7 -7 -7 -7 -7 ------------- Run | Jun Mat Min Mat Min Exi Min Mat Gar Mat Gar Mat Fac Gar Fac Gar Fac Low Turns Passed 35965 | 121 1300 560 3556 880 3798 1468 5197 1715 4568 1300 2458 2176 2536 1230 1659 678 765 Spaces Moved 18504 | 57 1211 519 2383 549 2396 843 2161 579 1868 611 1007 1200 1075 533 835 298 379 Core 8 | 8 . . . . . . . . . . . . . . . . . Treads 584 | . . . . . . . . 1 432 . . . . 151 . . . Legs 423 | 35 . . . . . . . . . . . . 243 145 . . . Wheels 17489 | 14 1211 519 2383 549 2396 843 2161 578 1436 611 1007 1200 832 237 835 298 379 Hover . | . . . . . . . . . . . . . . . . . . Flight . | . . . . . . . . . . . . . . . . . . Fastest Speed 50 | 50 80 80 95 145 135 145 135 260 145 145 145 145 145 160 145 160 160 Average Speed 155 | 112 83 94 110 145 145 145 198 260 202 147 145 145 179 209 159 160 160 Slowest Speed 640 | 190 95 95 145 145 150 145 260 640 640 205 145 145 260 317 160 160 160 Overloaded Moves . | . . . . . . . . . . . . . . . . . . Propulsion Burnouts . | . . . . . . . . . . . . . . . . . . Robots Hopped . | . . . . . . . . . . . . . . . . . . Cave-ins Triggered 1 | . . . . . . . . . . . . . 1 . . . . Exploration Rate (%) 69 | 4 100 94 98 99 91 99 91 71 90 74 74 31 87 16 87 9 33 Regions Visited 17 Branch Regions 5 Pre-discovered Areas 3 | . 1 . . . 1 . . . . . . . . . . . 1 Known Exits Taken 7 | . . . 1 . . . 1 . 1 . 1 1 . 1 . 1 . Unknown Exits Taken 6 | 1 1 1 . 1 1 1 . . . . . . . . . . . Scrap Searched 9 | . . 1 . 1 . 1 . . . . . . . . . . 6 Spaces Dug 109 | . . . . . 21 . 11 . 36 . . . 21 . . 3 17 Terrain Destroyed 477 | . 23 17 20 . 41 11 56 29 69 12 21 . 21 16 50 71 20 Melee 7 | . . . . . 3 . . . . . . . 4 . . . . Projectile 152 | . . . . . 18 . 35 1 69 . . . 17 . 2 6 4 AOE 318 | . 23 17 20 . 20 11 21 28 . 12 21 . . 16 48 65 16 Terrain Rammed . | . . . . . . . . . . . . . . . . . . Walls Destroyed . | . . . . . . . . . . . . . . . . . . Machines Disabled . | . . . . . . . . . . . . . . . . . . Actions | -11 -10 -10 -9 -9 -9 -8 -8 -8 -8 -8 -8 -7 -7 -7 -7 -7 -7 --------- Run | Jun Mat Min Mat Min Exi Min Mat Gar Mat Gar Mat Fac Gar Fac Gar Fac Low Total 24272 | 89 1433 563 3132 632 2607 1071 2936 699 2515 926 1911 1563 1514 614 1053 483 531 Wait 3914 | . 140 19 550 79 20 215 568 36 493 181 846 235 169 1 70 165 127 Move 18488 | 56 1210 518 2382 548 2395 842 2160 578 1868 610 1006 1200 1072 533 834 297 379 Hop . | . . . . . . . . . . . . . . . . . . Pick Up 207 | 9 13 3 36 2 34 1 25 2 15 3 7 16 15 8 11 4 3 Fast Attach 70 | 9 3 1 8 . 1 . 14 . 14 . 1 7 . 3 3 2 4 Attach 67 | . . . 10 . 11 . 11 . 5 3 2 5 8 5 3 1 3 Detach 7 | . . . . . 2 . 1 . 1 . . 2 . 1 . . . Swap 171 | 2 12 6 15 . 17 4 11 4 14 11 4 11 30 18 9 . 3 Drop 190 | 3 17 3 25 2 32 1 19 2 18 2 5 23 8 10 14 1 5 Fire 893 | 10 38 13 90 1 39 8 127 61 87 84 40 47 133 19 76 13 7 Melee 61 | . . . 1 . 52 . . . . . . 1 7 . . . . Ram . | . . . . . . . . . . . . . . . . . . Kick . | . . . . . . . . . . . . . . . . . . Crush . | . . . . . . . . . . . . . . . . . . Escape Stasis 152 | . . . . . . . . 16 . 32 . 16 40 16 32 . . Rewire 33 | . . . . . . . . . . . . . 32 . 1 . . Trap 19 | . . . 15 . 4 . . . . . . . . . . . . Miscellaneous . | . . . . . . . . . . . . . . . . . . Route ------- -11/Junkyard -10/Materials (discovered 4 exits: *Mat x3 / *Min) -10/Mines (discovered 2 exits: *Mat x2) -9/Materials (discovered 4 exits: *Mat x3 / *Min) -9/Mines (discovered 4 exits: *Mat x2 / *Exi / [*Zio]) -9/Exiles -8/Mines (discovered 2 exits: *Mat x2) -8/Materials (discovered 4 exits: *Fac x3 / Gar) -8/Garrison (discovered 4 exits: *Fac x3 / *Mat) -8/Materials (discovered 3 exits: *Fac x2 / Gar) -8/Garrison (discovered 3 exits: *Mat x3) -8/Materials (discovered 2 exits: *Fac x2) -7/Factory (discovered 6 exits: [*Fac] / *Sto x2 / Low x2 / Gar) -7/Garrison (discovered 3 exits: *Fac x3) -7/Factory (discovered 2 exits: *Sto / Gar) -7/Garrison (discovered 3 exits: *Fac x3) -7/Factory (discovered 3 exits: Sto / *Low x2) -7/Lower Caves (discovered 1 exit: [*Fac]) History --------- Turn | Location | Event 9 | -11/Junkyard | Discovered new exit (range 15) 122 | -11/Junkyard | Entered Materials 170 | -10/Materials | Discovered new exit (range 7) 260 | -10/Materials | Discovered new exit (range 15) 306 | -10/Materials | Build established: Mutant 463 | -10/Materials | Discovered new exit (range 6) 538 | -10/Materials | Discovered new exit (range 16) 927 | -10/Materials | Repaired Med. Laser 1422 | -10/Materials | Entered Mines 1422 | -10/Mines | Accompanied by 2 allies 1470 | -10/Mines | Learned location of 1 exit from Materials 1481 | -10/Mines | Received a Rocket Launcher from a helpful Derelict 1545 | -10/Mines | Assembled infested the area 1550 | -10/Mines | Assisted by a Guerilla fighting off Assembled 1614 | -10/Mines | Destroyed 8 combat bots 1620 | -10/Mines | Discovered new exit (range 13) 1666 | -10/Mines | Discovered new exit (range 15) 1722 | -10/Mines | Learned 2 Materials zone layouts 1826 | -10/Mines | Found a hidden stash of uninstalled traps 1931 | -10/Mines | Met a Derelict who couldn't figure out how to use a Trap Extractor 1982 | -10/Mines | Entered Materials 1982 | -9/Materials | Accompanied by 1 ally 1982 | -9/Materials | Evolved 2 slots: Utility x2 1983 | -9/Materials | Identified exit to Mines 3191 | -9/Materials | Discovered new exit (range 14) 3531 | -9/Materials | Discovered new exit (range 10) 3941 | -9/Materials | Central database locked down 4096 | -9/Materials | Discovered new exit (range 15) 4554 | -9/Materials | Repaired Imp. Trap Extractor 4582 | -9/Materials | Repaired Wheel 4782 | -9/Materials | First assault squad dispatched 5538 | -9/Materials | Entered Mines 5541 | -9/Mines | Learned Materials terminal intel 5556 | -9/Mines | Learned location of 1 exit from Materials 5558 | -9/Mines | YI-UF0 nonchalantly dropped a Grenade Launcher on the ground 6041 | -9/Mines | Discovered new exit (range 6) 6045 | -9/Mines | A Derelict revealed a hidden shortcut to a safe place 6286 | -9/Mines | Discovered new exit (range 10) 6322 | -9/Mines | Deemed a non-threat by the Exiles lab entrance 6322 | -9/Mines | Discovered new exit (range 5) 6418 | -9/Mines | Entered Exiles 6453 | -9/Exiles | Met 8R-AWN 6479 | -9/Exiles | Met EX-HEX 6536 | -9/Exiles | Met EX-DEC 6542 | -9/Exiles | Learned location of Zion (-7) 6657 | -9/Exiles | Visited The Gauntlet 6881 | -9/Exiles | Met EX-BIN 7298 | -9/Exiles | Aligned with FarCom system 7300 | -9/Exiles | Given EX-Vault access code 7334 | -9/Exiles | Opened EX-Vault 7342 | -9/Exiles | Found Longsword +1 7348 | -9/Exiles | Found Latent Energy Streamer 7352 | -9/Exiles | Found Chronowheel 7402 | -9/Exiles | Warned to stay clear of 0b10 Research branches 7470 | -9/Exiles | Warned about trapping Exiles lab 8271 | -9/Exiles | Attacked by the Exiles 8370 | -9/Exiles | Destroyed 8R-AWN 8382 | -9/Exiles | Found 8R-AWN's Armor/EX 8481 | -9/Exiles | Found 8R-AWN's Boregun 8668 | -9/Exiles | Core integrity fell below 50% 8778 | -9/Exiles | Found 8R-AWN's Boregun 8891 | -9/Exiles | Destroyed EX-DEC 9581 | -9/Exiles | Found AWS/EX-DEC 9631 | -9/Exiles | Destroyed EX-HEX 9655 | -9/Exiles | Destroyed EX-BIN 9661 | -9/Exiles | Found System Purifier 9799 | -9/Exiles | Found Deploy-a-Sentry 9937 | -9/Exiles | Found Exp. Targeting Computer 10036 | -9/Exiles | Discovered new exit (range 14) 10216 | -9/Exiles | Left Exiles lab with Deploy-a-Sentry 10216 | -9/Exiles | Entered Mines 10474 | -8/Mines | Discovered new exit (range 16) 10522 | -8/Mines | Discovered new exit (range 10) 11684 | -8/Mines | Entered Materials 11684 | -8/Materials | Evolved 2 slots: Utility x2 11685 | -8/Materials | Identified exit to Factory 11686 | -8/Materials | Loaded intel: 12 terminal locations 13593 | -8/Materials | Garrison activated, responded to threat 13625 | -8/Materials | Found Corrupted Prototype Device 14109 | -8/Materials | Repaired Hrd. Medium Armor Plating? 15425 | -8/Materials | Identified Active Sensor Suite 15738 | -8/Materials | Repaired Broken Imp. System Guard 15807 | -8/Materials | Repaired Adv. Weapon Cycler 15879 | -8/Materials | Repaired Hvy. Deuterium Engine 16524 | -8/Materials | Repaired EMP Blaster 16563 | -8/Materials | Repaired Hrd. Medium Armor Plating 16641 | -8/Materials | Central database locked down 16748 | -8/Materials | Identified exit to Garrison 16881 | -8/Materials | Entered Garrison 16948 | -8/Garrison | Garrison Relay disabled 17362 | -8/Garrison | Triggered checkpoint 17576 | -8/Garrison | Discovered exit to Factory (range 44) 17576 | -8/Garrison | Discovered exit to Factory (range 20) 17576 | -8/Garrison | Discovered exit to Factory (range 85) 17576 | -8/Garrison | Discovered new exit (range 34) 17800 | -8/Garrison | Triggered checkpoint 18001 | -8/Garrison | Triggered checkpoint 18069 | -8/Garrison | Garrison Relay disabled 18528 | -8/Garrison | Triggered checkpoint 18596 | -8/Garrison | Entered Materials 19092 | -8/Materials | Core integrity fell below 50% 19501 | -8/Materials | Build established: Hacker-Mutant 20289 | -8/Materials | Discovered exit to Factory (range 3) 21165 | -8/Materials | Repaired Hrd. Medium Armor Plating 21211 | -8/Materials | Repaired Imp. Cooling System 21483 | -8/Materials | Discovered exit to Factory (range 13) 22308 | -8/Materials | Repaired Broken Hvy. Deuterium Engine 23030 | -8/Materials | Build established: Mutant 23164 | -8/Materials | Identified exit to Garrison 23164 | -8/Materials | Entered Garrison 23348 | -8/Garrison | Triggered checkpoint 23384 | -8/Garrison | Garrison Relay disabled 23463 | -8/Garrison | Garrison Relay disabled 23642 | -8/Garrison | Triggered checkpoint 23743 | -8/Garrison | Discovered new exit (range 5) 23947 | -8/Garrison | Triggered checkpoint 23984 | -8/Garrison | Garrison Relay disabled 24195 | -8/Garrison | Build established: Hacker-Mutant 24232 | -8/Garrison | Triggered checkpoint 24321 | -8/Garrison | Garrison Relay disabled 24352 | -8/Garrison | Discovered new exit (range 9) 24430 | -8/Garrison | Discovered new exit (range 23) 24430 | -8/Garrison | Discovered new exit (range 49) 24430 | -8/Garrison | Discovered new exit (range 74) 24464 | -8/Garrison | Entered Materials 25111 | -8/Materials | Core integrity fell below 20% 25279 | -8/Materials | Discovered exit to Factory (range 15) 25747 | -8/Materials | Repaired Hrd. Medium Armor Plating 25817 | -8/Materials | Repaired Hvy. Deuterium Engine 25844 | -8/Materials | Repaired Com. Wheel 26051 | -8/Materials | Discovered exit to Factory (range 14) 26077 | -8/Materials | Central database locked down 26922 | -8/Materials | Entered Factory 26922 | -7/Factory | Evolved 2 slots: Utility x2 26970 | -7/Factory | Identified exit to Storage 26970 | -7/Factory | Identified exit to Lower Caves 27330 | -7/Factory | Fabricated I-36 Angel (x1) 27361 | -7/Factory | Garrison activated, responded to threat 27566 | -7/Factory | Discovered new exit (range 9) 27979 | -7/Factory | Central database locked down 29098 | -7/Factory | Identified exit to Garrison 29098 | -7/Factory | Entered Garrison 29401 | -7/Garrison | Triggered checkpoint 29604 | -7/Garrison | Triggered checkpoint 29654 | -7/Garrison | Garrison Relay disabled 29803 | -7/Garrison | Discovered new exit (range 9) 30008 | -7/Garrison | Crushed by falling debris 30120 | -7/Garrison | Triggered checkpoint 30230 | -7/Garrison | Garrison Relay disabled 30418 | -7/Garrison | Discovered new exit (range 10) 30725 | -7/Garrison | Garrison Relay disabled 30756 | -7/Garrison | Discovered new exit (range 9) 31000 | -7/Garrison | Triggered checkpoint 31026 | -7/Garrison | Triggered checkpoint 31129 | -7/Garrison | Core integrity fell below 50% 31210 | -7/Garrison | Triggered checkpoint 31320 | -7/Garrison | Build established: Scavenger-Mutant 31457 | -7/Garrison | Attempted to access garrison exit controls, blocked by remote lockdown 31634 | -7/Garrison | Entered Factory 31634 | -7/Factory | Accompanied by 1 ally 31708 | -7/Factory | Discovered exit to Storage (range 15) 32246 | -7/Factory | Build established: Hacker-Mutant 32434 | -7/Factory | First assault squad dispatched 32864 | -7/Factory | Identified exit to Garrison 32864 | -7/Factory | Entered Garrison 32906 | -7/Garrison | Triggered checkpoint 32953 | -7/Garrison | Garrison Relay disabled 33050 | -7/Garrison | Triggered checkpoint 33100 | -7/Garrison | Triggered checkpoint 33239 | -7/Garrison | Garrison Relay disabled 33422 | -7/Garrison | Garrison Relay disabled 33424 | -7/Garrison | Garrison Relay disabled 33428 | -7/Garrison | Garrison Relay disabled 33640 | -7/Garrison | Found embedded Infiltrators 33708 | -7/Garrison | Triggered checkpoint 33812 | -7/Garrison | Triggered checkpoint 33820 | -7/Garrison | Core integrity fell below 20% 33908 | -7/Garrison | Garrison Relay disabled 33934 | -7/Garrison | Discovered new exit (range 9) 34014 | -7/Garrison | Triggered checkpoint 34156 | -7/Garrison | Triggered checkpoint 34202 | -7/Garrison | Discovered new exit (range 18) 34202 | -7/Garrison | Discovered new exit (range 76) 34202 | -7/Garrison | Discovered new exit (range 44) 34270 | -7/Garrison | Garrison Relay disabled 34523 | -7/Garrison | Entered Factory 34523 | -7/Factory | Accompanied by 1 ally 34807 | -7/Factory | Repaired System Purifier 34818 | -7/Factory | Repaired Hvy. Deuterium Engine? 34883 | -7/Factory | Repaired Arm. Huge Wheel 34923 | -7/Factory | First assault squad dispatched 34929 | -7/Factory | Repaired Hvy. Rocket Launcher 34974 | -7/Factory | Repaired Lyr. Light Armor Plating 35071 | -7/Factory | Build established: Mutant 35201 | -7/Factory | Entered Lower Caves 35201 | -7/Lower Caves | Accompanied by 1 ally 35201 | -7/Lower Caves | Spotted X5-KW7(f) 35201 | -7/Lower Caves | Spotted AQ-TF6(f) 35201 | -7/Lower Caves | Spotted RI-NX7(f) 35202 | -7/Lower Caves | ME-RLN showed up to help 35202 | -7/Lower Caves | Encountered a Master Thief 35202 | -7/Lower Caves | Encountered a Master Thief 35202 | -7/Lower Caves | Encountered a Master Thief 35202 | -7/Lower Caves | Deploy-a-Sentry stolen by Master Thief 35204 | -7/Lower Caves | ME-RLN revealed a hidden path 35204 | -7/Lower Caves | Allies destroyed AQ-TF6(f) 35204 | -7/Lower Caves | Allies destroyed RI-NX7(f) 35204 | -7/Lower Caves | Allies destroyed X5-KW7(f) 35208 | -7/Lower Caves | Met a Warlord Commander 35209 | -7/Lower Caves | Learned location of Warlord (-4) 35238 | -7/Lower Caves | Found Encrypted Comm Array 35519 | -7/Lower Caves | Build established: Scavenger-Mutant 35560 | -7/Lower Caves | Encountered a Warlord checkpoint 35595 | -7/Lower Caves | Spotted B-75 Beast 35727 | -7/Lower Caves | Found Alien Artifact 35727 | -7/Lower Caves | Identified Core Expander 35727 | -7/Lower Caves | Installed Core Expander, added new Power slot 35966 | -7/Lower Caves | Destroyed by S-27 Virus with Autogun Last Messages --------------- 35727_ Dropped Adv. Weapon Cycler. 35727_ Acquired Alien Artifact. 35727_ Identified Core Expander. 35727_ Core Expander installed, core expanded with Power slot. 35730_ Acquired Adv. Weapon Cycler. 35759_ Acquired 2 matter. 35762_ Acquired 5 matter. 35764_ Acquired 1 matter. 35769_ Acquired 4 matter. 35770_ Acquired 1 matter. 35788_ Acquired 5 matter. 35790_ Acquired 2 matter. 35850_ Acquired 11 matter. 35863_ Dropped Arm. Huge Wheel. 35863_ Acquired Arm. Huge Wheel. 35866_ Dropped Arm. Treads. 35867_ Acquired Arm. Huge Wheel. 35869_ Acquired 20 matter. 35964_ Dropped Hvy. Mass Driver. 35965_ S-27 Virus destroyed. Map ----- +----------------------------------------------------+ | ?????????????????????????????????????????????????? | | ?????????????????????????????????????????????????? | | ?????????????????????????????????????????????????? | | ?????????????????????????????????????????????????? | | ?????????????????????????????????????????????????? | | ?????????????????????????????????????????????????? | | ?????????????????????????????????????????????????? | | ?????????????????????????????????????????????????? | | ?????????????????????????????????????????????????? | | ?????????????????????????????????????????????????? | | ####?????????????????????????????????????????????? | | #?????????????????????????????????????????????? | | #####??????######?????????????????????????????? | | #??????# #?????????????????????????????? | | #??????# ##?????????###?????????????????? | | ## ####???# #?????????# #?????????????????? | | ## ##??# ##??####### ####??????????????? | | ## #??# #### % ????????????? | | #### #### #????????????????? | | ???# ## #####% #????????????????? | | ???# ##### #????????????????? | | ???# ###?# #????????????????? | | ??# ## ###???# %#???????? #?????? | | ??# ###### #?##### % ##??????? #?????? | | ??# ##????# ### #??????? #?????? | | ??## #????## @ s% #??#????? ##????? | | ???# ##???## # s #??# ???? ????? | | ??# ##???## #### s ### #?# ?????? | | ?# #?????# ## #???? # ?????? | | # #?????## #######????# % "" ?????? | | #?????## #####?????# ??# """"" #?????? | | ?????## ##?????????? ## * """" #?????? | | ?????# ##????????????? !%= " ##????? | | ??????# #???????????????? %%"" "" #????? | | ?????## ##????????????????? " """ #????? | | ?????# "#??????????????????? " " "" #????? | | #?????## ###??????????????????? #???## | | ??????# ##??????????????????? #?#### | | ?????## ##???????????????????## #### | | ?????# ##???????????????????#/! ## | | ?????# ##????????####???####= = | | ?????# #####???## #???# *! | | ????# ## ##### ##??# > # | | ???# ## #### ##"/ # | | ??# ### ## "! ! ## | | ?# ### ###?# #### ########## ##? | | # #??#####?# ##??# ##????????## ###?? | | # ????????# ##??# ##??????????####???? | | ?????????## #######???#####??????????????????? | | ??????????###?????????????????????????????????? | +----------------------------------------------------+ Best States ------------- Heat Dissipation 75 Energy Generation 29 Energy Capacity 500 Matter Stores 300 Matter Capacity 300 Sight Range 22 Robot Scan Range 15 Terrain Scan Range 16 Terrain Scan Density 10 Jamming Range 12 Armor Coverage 750 Resistance: KI 20 Core Shielding 20 Weapon Cycling 25 Phase Shifting 15 Evasion (%) 54 Targeting Accuracy 12 Core Analysis 6 Recoil Reduction 2 Energy Filtering 30 Particle Charging 15 Offensive Hacking 10 Defensive Hacking 17 Authchip Count 1 Trap Extractor Capacity 6 Item Schematics ----------------- Hvy. Ion Engine | -9/Materials | Scanalyzed Imp. Medium Laser | -9/Materials | Scanalyzed Imp. Trap Extractor | -9/Materials | Scanalyzed Imp. System Guard | -8/Materials | Scanalyzed Exp. Targeting Computer | -8/Materials | Scanalyzed Imp. Transmission Jammer | -7/Factory | Hacked Imp. Coolant Injector | -7/Factory | Hacked Thermic Laser | -7/Factory | Hacked Hvy. Treads | -7/Factory | Hacked Fission Core | -7/Factory | Hacked Robot Schematics ------------------ O-24 Administrator | -8/Materials | Hacked A-02 Transporter | -7/Factory | Hacked Fabricated ------------ I-36 Angel | x1 | -7/Factory | Preloaded Alien Tech Used ----------------- Core Expander Achievements -------------- None Challenges ------------ None Game ------ Seed ScanUtilityCompactor Manual? 0 Play Time 04:33:03 Cumulative 600.4 hours Start 2023.03.25 @ 00:36:23 End 2023.03.25 @ 17:20:21 Sessions 3 Manual Loads 0 Difficulty Rogue Special Mode None Game No. 415 Rogue 415 Adventurer 0 Explorer 0 Win Type - Total 1 Types 1/0/0/0/0/0/0/0/0 Lore% 70 Gallery% 78 Achievement% 58 Wizard Run 0 Options --------- ASCII 0 Keyboard 0 Movement Mouse Keybinds 0 Fullscreen 1 Font 16/SmallcapsGlow Map View 75x55 Tactical HUD 1 Map Filters NONE Filters NONE Steam 1 RUN: ebf2c195-5b39-4169-96a7-86eb7c15c952